bitfinex/quotes_BTCUSD_20250414
["timestamp","ask_amount","ask_price","bid_price","bid_amount"]
[1744654428527,0.247509,84846.0,84843.0,0.247515]
[1744654429014,0.235726,84844.0,84842.0,0.13262754]
[1744654429322,0.25852951,84845.0,84842.0,0.36835854]
[1744654430228,0.01101951,84844.0,84842.0,0.36835854]
[1744654430777,0.247523,84841.0,84839.0,0.23574]
[1744654430981,0.247523,84842.0,84839.0,0.23574]
[1744654431180,0.247523,84842.0,84840.0,0.235737]
[1744654431960,0.247523,84842.0,84839.0,0.011787]
[1744654432290,0.247523,84842.0,84838.0,0.00013752]
[1744654432291,0.011786,84841.0,84838.0,0.00013752]
[1744654432438,0.235738,84840.0,84838.0,0.00013752]
[1744654432616,0.23574,84839.0,84838.0,0.00013752]
[1744654433256,0.2467689,84839.0,84838.0,0.00013752]
[1744654433962,0.2957689,84839.0,84838.0,0.00013752]
[1744654435235,0.30238454,84839.0,84838.0,0.00013752]
[1744654435439,0.30438454,84839.0,84838.0,0.00013752]
[1744654435917,0.30738454,84839.0,84838.0,0.00013752]
[1744654437856,0.3007689,84839.0,84838.0,0.00013752]
[1744654442218,0.0160289,84839.0,84838.0,0.00013752]
[1744654443058,0.0160289,84839.0,84838.0,0.23588052]
[1744654444085,0.0140289,84839.0,84838.0,0.23588052]
[1744654444418,0.2507689,84839.0,84838.0,0.00013752]
[1744654444554,0.0150289,84839.0,84838.0,0.23588052]
[1744654444955,0.0120289,84839.0,84838.0,0.23588052]
[1744654445451,0.0140289,84839.0,84838.0,0.23588052]
[1744654445650,0.0120289,84839.0,84838.0,0.23588052]
[1744654445874,0.0110289,84839.0,84838.0,0.23488052]
[1744654446101,0.003,84839.0,84838.0,0.23488052]
[1744654447361,0.011787,84837.0,84834.0,0.235754]
[1744654447563,0.00660866,84836.0,84835.0,0.12084154]
[1744654447811,0.00660866,84836.0,84835.0,0.35659254]
[1744654448467,0.00660866,84836.0,84834.0,0.247541]
[1744654449035,0.00660366,84835.0,84834.0,0.247541]
[1744654449308,0.011788,84831.0,84827.0,0.011788]
[1744654449515,0.235776,84827.0,84821.0,0.01178769]
[1744654449714,0.247564,84827.0,84823.0,0.235782]
[1744654449929,0.235782,84824.0,84820.0,0.1461024]
[1744654450058,0.235787,84822.0,84821.0,0.01173653]
[1744654450268,0.23579,84821.0,84820.0,0.0004224]
[1744654450911,0.29650834,84821.0,84820.0,0.0004224]
[1744654451085,0.06071834,84821.0,84820.0,0.0004224]
[1744654451291,3.4e-07,84821.0,84820.0,0.84273694]
[1744654451511,0.09560092,84864.0,84820.0,0.84273694]
[1744654451512,0.04970092,84864.0,84863.0,0.235673]
[1744654451714,9.2e-07,84864.0,84863.0,0.235673]
[1744654452069,0.00013839,84864.0,84863.0,0.235673]
[1744654452832,0.00413839,84864.0,84863.0,0.235673]
[1744654452989,0.00013839,84864.0,84863.0,0.235673]
[1744654453186,0.00013839,84864.0,84863.0,0.237673]
[1744654453412,0.00013839,84864.0,84863.0,0.239673]
[1744654453618,0.00013839,84864.0,84863.0,0.004]
[1744654454136,0.02899664,84864.0,84863.0,0.004]
[1744654454557,0.02899664,84864.0,84863.0,0.002]
[1744654454977,0.26466764,84864.0,84854.0,0.235698]
[1744654455131,0.011784,84858.0,84854.0,0.235698]
[1744654455553,0.00680384,84857.0,84854.0,0.235698]
[1744654455773,0.00680384,84857.0,84856.0,0.235693]
[1744654456159,0.011783,84861.0,84857.0,0.235689]
[1744654456469,0.011783,84861.0,84859.0,0.235684]
[1744654457242,0.011783,84861.0,84858.0,0.235687]
[1744654458047,0.011784,84860.0,84857.0,0.235689]
[1744654458250,0.011784,84860.0,84853.0,0.247486]
[1744654458251,0.24748,84856.0,84848.0,0.235715]
[1744654458458,0.011784,84854.0,84851.0,0.235707]
[1744654458667,0.011784,84855.0,84853.0,0.235701]
[1744654458854,0.011784,84856.0,84853.0,0.235701]
[1744654458855,0.247478,84856.0,84853.0,0.235701]
[1744654459073,0.247478,84856.0,84852.0,0.235703]
[1744654459074,0.011784,84858.0,84854.0,0.235698]
[1744654459250,0.011784,84858.0,84854.0,0.247482]
[1744654459431,0.011784,84858.0,84854.0,0.011784]
[1744654459848,0.247457,84863.0,84860.0,0.23568]
[1744654460083,0.00013839,84864.0,84857.0,0.011784]
[1744654460328,0.00013839,84864.0,84863.0,0.235673]
[1744654460554,0.00013839,84864.0,84862.0,0.235676]
[1744654460877,0.01192139,84864.0,84861.0,0.235678]
[1744654461057,0.24759239,84864.0,84861.0,0.235678]
[1744654461296,0.011784,84857.0,84854.0,0.235698]
[1744654461496,0.247471,84859.0,84855.0,0.235696]
[1744654461699,0.011784,84858.0,84855.0,0.235696]
[1744654461900,0.011784,84858.0,84856.0,0.235692]
[1744654462340,0.011784,84858.0,84855.0,0.235696]
[1744654462519,0.011784,84858.0,84856.0,0.235693]
[1744654462840,0.011784,84858.0,84855.0,0.235696]
[1744654462841,0.011785,84850.0,84846.0,0.01189447]
[1744654463164,0.247496,84850.0,84846.0,0.23572]
[1744654463294,0.011785,84852.0,84848.0,0.011785]
[1744654463506,0.235713,84849.0,84846.0,0.011786]
[1744654463710,0.235711,84850.0,84842.0,0.23573]
[1744654463711,0.235721,84846.0,84842.0,0.23573]
[1744654464466,0.011786,84845.0,84843.0,0.235729]
[1744654464812,0.247507,84846.0,84843.0,0.235729]
[1744654465195,0.00678446,84845.0,84844.0,0.235726]
[1744654465392,0.011784,84857.0,84854.0,0.235697]
[1744654465597,0.011784,84857.0,84850.0,0.011785]
[1744654465598,0.25431638,84856.0,84851.0,0.247492]
[1744654465829,0.25431638,84856.0,84855.0,0.235696]
[1744654465830,0.00683938,84856.0,84855.0,0.235696]
[1744654466040,0.011783,84862.0,84858.0,0.235685]
[1744654466249,0.00686433,84861.0,84860.0,0.247464]
[1744654466449,0.235675,84863.0,84860.0,0.247464]
[1744654466450,0.247458,84863.0,84860.0,0.011784]
[1744654466659,0.247458,84863.0,84856.0,0.235692]
[1744654466660,0.011784,84860.0,84856.0,0.235692]
[1744654466865,0.011784,84860.0,84850.0,0.011785]
[1744654466866,0.011784,84854.0,84850.0,0.011785]
[1744654467100,0.235726,84844.0,84843.0,0.001]
[1744654467296,0.00677947,84844.0,84843.0,0.001]
[1744654467515,0.247507,84846.0,84843.0,0.001]
[1744654467715,0.00678306,84844.0,84843.0,0.011786]
[1744654467917,0.011785,84848.0,84845.0,0.235722]
[1744654468153,0.235719,84847.0,84844.0,0.247512]
[1744654468333,0.011785,84848.0,84844.0,0.011786]
[1744654468511,0.235721,84846.0,84844.0,0.011786]
[1744654468888,0.011784,84855.0,84846.0,0.23572]
[1744654469012,0.011785,84852.0,84849.0,0.011785]
[1744654469212,0.247491,84852.0,84849.0,0.247495]
[1744654469590,0.247491,84852.0,84845.0,0.247508]
[1744654469591,0.011785,84851.0,84845.0,0.247508]
[1744654470603,0.23571,84850.0,84845.0,0.247508]
[1744654470805,0.247499,84849.0,84846.0,0.011786]
[1744654470923,0.235716,84848.0,84846.0,0.011786]
[1744654472346,0.247499,84849.0,84846.0,0.247506]
[1744654472569,0.247499,84849.0,84846.0,0.011786]
[1744654472739,0.247499,84849.0,84846.0,0.247506]
[1744654473144,0.247499,84849.0,84846.0,0.011786]
[1744654473366,0.011785,84852.0,84846.0,0.247506]
[1744654473570,0.2475,84849.0,84845.0,0.011786]
[1744654473772,0.235716,84848.0,84845.0,0.247509]
[1744654474084,0.235716,84848.0,84845.0,0.011786]
[1744654474291,0.235716,84848.0,84845.0,0.247509]
[1744654474699,0.2475,84849.0,84846.0,0.247506]
[1744654475083,0.011784,84858.0,84855.0,0.235696]
[1744654475274,0.235699,84854.0,84852.0,0.011785]
[1744654475569,0.011783,84861.0,84845.0,0.001]
[1744654475570,0.108682,84870.0,84858.0,0.011784]
[1744654475912,0.011783,84866.0,84858.0,0.011784]
[1744654476107,0.247462,84862.0,84859.0,0.247468]
[1744654476298,0.26945666,84861.0,84858.0,0.24747]
[1744654476420,0.02199366,84860.0,84859.0,0.235684]
[1744654476621,0.01099683,84863.0,84859.0,0.235684]
[1744654476622,0.01099683,84863.0,84862.0,0.235676]
[1744654476824,0.01776917,84863.0,84862.0,0.235676]
[1744654477023,0.03298758,84863.0,84862.0,0.35887417]
[1744654477230,0.011781,84876.0,84863.0,0.235673]
[1744654477493,0.011781,84876.0,84863.0,0.35887098]
[1744654477680,0.011782,84874.0,84863.0,0.35651454]
[1744654477879,0.02199075,84875.0,84863.0,0.35651454]
[1744654478120,0.0008452,84878.0,84863.0,0.35651454]
[1744654478305,0.235643,84874.0,84863.0,0.35651454]
[1744654478508,0.01099364,84873.0,84863.0,0.35751454]
[1744654478754,0.235663,84867.0,84863.0,0.35751454]
[1744654478920,0.247441,84869.0,84863.0,0.35951454]
[1744654479141,0.00691572,84864.0,84863.0,0.35951454]
[1744654479343,0.00013839,84864.0,84863.0,0.35951454]
[1744654479528,0.00691572,84864.0,84863.0,0.35951454]
[1744654479831,0.00013839,84864.0,84863.0,0.35951454]
[1744654485248,0.23580939,84864.0,84863.0,0.003]
[1744654485461,0.24277847,84864.0,84863.0,0.003]
[1744654486358,0.26478459,84864.0,84863.0,0.001]
[1744654486564,0.26578459,84864.0,84863.0,0.001]
[1744654486765,0.235673,84863.0,84862.0,0.14556]
[1744654487172,0.24263709,84863.0,84862.0,0.14556]
[1744654487791,0.25364011,84863.0,84862.0,0.14556]
[1744654488490,0.25464011,84863.0,84862.0,0.14556]
[1744654488701,0.01896711,84863.0,84862.0,0.14556]
[1744654489259,0.25464011,84863.0,84862.0,0.14556]
[1744654489463,0.24363709,84863.0,84862.0,0.14556]
[1744654490182,0.25542009,84863.0,84860.0,0.011784]
[1744654490385,0.25542009,84863.0,84859.0,0.235684]
[1744654490386,0.247461,84862.0,84859.0,0.235684]
[1744654490787,0.0069541,84861.0,84860.0,0.235681]
[1744654491802,0.00013839,84864.0,84863.0,0.235673]
[1744654492433,0.00013839,84864.0,84863.0,0.35651454]
[1744654493709,0.00213839,84864.0,84863.0,0.35651454]
[1744654493905,0.00113839,84864.0,84863.0,0.35651454]
[1744654494294,0.00013839,84864.0,84863.0,0.35751454]
[1744654494506,0.00013839,84864.0,84863.0,0.35851454]
[1744654495062,0.00017839,84864.0,84863.0,0.35851454]
[1744654500273,0.00017839,84864.0,84863.0,0.40821454]
[1744654500863,0.00017839,84864.0,84863.0,0.35851454]
[1744654507095,3.9e-07,84864.0,84863.0,0.71305539]
[1744654507321,0.002,84889.0,84877.0,0.285535]
[1744654507471,0.002,84889.0,84877.0,0.55181654]
[1744654507695,0.00130349,84878.0,84877.0,0.55181654]
[1744654507897,0.00130349,84878.0,84877.0,0.26628154]
[1744654508134,0.0060185,84878.0,84877.0,0.26628154]
[1744654508278,0.23693549,84878.0,84877.0,0.26628154]
[1744654508486,0.00130349,84878.0,84877.0,0.12084154]
[1744654508827,0.00130349,84878.0,84877.0,0.50191654]
[1744654509238,0.00130349,84878.0,84877.0,0.50391654]
[1744654509532,0.00130349,84878.0,84877.0,0.12284154]
[1744654509754,0.00606026,84878.0,84877.0,0.12284154]
[1744654509964,0.00606026,84878.0,84877.0,0.35847654]
[1744654510318,0.23693549,84878.0,84877.0,0.002]
[1744654510484,0.24169226,84878.0,84877.0,0.002]
[1744654510679,0.24169226,84878.0,84877.0,0.003]
[1744654511380,0.00606026,84878.0,84877.0,0.236635]
[1744654511786,0.00706026,84878.0,84877.0,0.35747654]
[1744654511994,0.00230349,84878.0,84877.0,0.35747654]
[1744654512419,0.00230349,84878.0,84877.0,0.35647654]
[1744654513433,0.00230349,84878.0,84877.0,0.35747654]
[1744654513634,0.00130349,84878.0,84877.0,0.35747654]
[1744654514978,0.00130349,84878.0,84877.0,0.35847654]
[1744654515523,0.23693549,84878.0,84877.0,0.12284154]
[1744654515730,0.23693549,84878.0,84877.0,0.002]
[1744654516491,0.23693549,84878.0,84877.0,0.001]
[1744654516807,0.235635,84877.0,84875.0,0.011782]
[1744654517124,0.25971787,84878.0,84875.0,0.247422]
[1744654517274,0.25971787,84878.0,84874.0,0.247424]
[1744654517275,0.011781,84876.0,84873.0,0.011782]
[1744654518259,0.247418,84876.0,84873.0,0.247427]
[1744654518899,0.247418,84876.0,84868.0,0.01199372]
[1744654518900,0.235646,84873.0,84868.0,0.23566]
[1744654519105,0.23564,84875.0,84871.0,0.011782]
[1744654519413,0.23564,84875.0,84872.0,0.235648]
[1744654519939,0.247424,84876.0,84872.0,0.247429]
[1744654520120,0.247424,84876.0,84873.0,0.011782]
[1744654520323,0.235642,84875.0,84872.0,0.247429]
[1744654520659,0.247425,84875.0,84872.0,0.247429]
[1744654520862,0.235645,84874.0,84872.0,0.001]
[1744654521409,0.247424,84875.0,84872.0,0.248429]
[1744654521812,0.01101316,84874.0,84873.0,0.235646]
[1744654522011,0.01101316,84874.0,84872.0,0.248429]
[1744654522216,0.01101316,84874.0,84873.0,0.235646]
[1744654522885,0.235635,84877.0,84874.0,0.235641]
[1744654523387,0.24871749,84878.0,84875.0,0.24742]
[1744654523388,0.00130349,84878.0,84875.0,0.24742]
[1744654523510,0.235635,84877.0,84875.0,0.011782]
[1744654523710,0.235635,84877.0,84874.0,0.247423]
[1744654524022,0.0110157,84876.0,84874.0,0.247423]
[1744654524566,0.0110157,84876.0,84875.0,0.23564]
[1744654524973,0.247425,84875.0,84872.0,0.247429]
[1744654525181,0.011782,84875.0,84873.0,0.235643]
[1744654525383,0.2466547,84876.0,84873.0,0.235643]
[1744654525384,0.0110157,84876.0,84874.0,0.235643]
[1744654525537,0.247416,84877.0,84874.0,0.247424]
[1744654525739,0.00130349,84878.0,84877.0,0.235635]
[1744654526830,0.01231929,84878.0,84877.0,0.235635]
[1744654526985,0.01231929,84878.0,84876.0,0.235637]
[1744654527551,0.0110158,84877.0,84876.0,0.235637]
[1744654528794,0.0120158,84877.0,84876.0,0.235637]
[1744654530177,0.235638,84876.0,84874.0,0.011782]
[1744654530363,0.2594318,84877.0,84874.0,0.235642]
[1744654530510,0.0110158,84876.0,84874.0,0.235642]
[1744654531649,0.0110158,84876.0,84868.0,0.01221569]
[1744654531847,4e-05,84877.0,84866.0,0.247447]
[1744654531848,0.011782,84871.0,84866.0,0.247447]
[1744654532050,0.0110158,84875.0,84870.0,0.011782]
[1744654532262,0.0110158,84875.0,84871.0,0.235651]
[1744654532509,0.247425,84874.0,84870.0,0.011782]
[1744654532724,0.011782,84873.0,84868.0,0.011783]
[1744654532940,0.011782,84872.0,84869.0,0.247439]
[1744654533149,0.235657,84870.0,84868.0,0.001]
[1744654533353,0.011782,84871.0,84868.0,0.001]
[1744654533560,0.011782,84871.0,84867.0,0.011783]
[1744654533766,0.02203047,84870.0,84867.0,0.247444]
[1744654533995,0.04482827,84870.0,84864.0,0.011783]
[1744654534205,0.04482827,84870.0,84867.0,0.235662]
[1744654534634,0.28048527,84870.0,84868.0,0.002]
[1744654534838,0.28048527,84870.0,84864.0,0.011783]
[1744654534839,0.28048527,84870.0,84866.0,0.247448]
[1744654535052,0.28048527,84870.0,84863.0,0.15773828]
[1744654535053,0.235658,84869.0,84867.0,0.002]
[1744654535487,0.21674154,84868.0,84867.0,0.002]
[1744654535919,0.21674154,84868.0,84844.0,0.011786]
[1744654535920,0.011784,84854.0,84849.0,0.23571]
[1744654536149,0.011783,84863.0,84859.0,0.235684]
[1744654536355,0.24746,84862.0,84858.0,0.247469]
[1744654536827,0.26948503,84861.0,84858.0,0.011784]
[1744654537061,0.011784,84860.0,84856.0,0.235691]
[1744654537283,0.011784,84855.0,84852.0,0.011785]
[1744654537500,0.011784,84857.0,84854.0,0.011784]
[1744654537967,0.235689,84858.0,84843.0,0.235727]
[1744654537968,0.235709,84851.0,84846.0,0.235719]
[1744654538170,0.247497,84849.0,84846.0,0.235719]
[1744654538322,0.247497,84849.0,84845.0,0.011786]
[1744654538323,0.235717,84848.0,84845.0,0.011786]
[1744654538530,0.011785,84849.0,84846.0,0.247506]
[1744654538729,0.2357,84854.0,84843.0,0.235727]
[1744654538730,0.247472,84858.0,84853.0,0.011785]
[1744654538939,0.235692,84857.0,84853.0,0.011785]
[1744654539140,0.011784,84856.0,84853.0,0.011785]
[1744654539345,0.01107037,84856.0,84854.0,0.235698]
[1744654540133,6.477e-05,84856.0,84855.0,0.235696]
[1744654540583,0.00106477,84856.0,84855.0,0.235696]
[1744654541275,0.00106477,84856.0,84854.0,0.235698]
[1744654541498,0.23875777,84856.0,84853.0,0.011785]
[1744654541699,0.011784,84855.0,84850.0,0.247494]
[1744654541908,0.235702,84853.0,84850.0,0.247494]
[1744654542180,0.247487,84853.0,84849.0,0.247496]
[1744654542386,0.24749,84852.0,84847.0,0.247501]
[1744654542520,0.247487,84853.0,84850.0,0.235709]
[1744654542743,0.011785,84853.0,84850.0,0.235709]
[1744654542957,0.011785,84853.0,84850.0,0.247494]
[1744654543920,0.247501,84848.0,84845.0,0.011786]
[1744654544208,0.235707,84851.0,84846.0,0.247506]
[1744654544375,0.247492,84851.0,84846.0,0.247506]
[1744654544581,0.011785,84848.0,84844.0,0.235724]
[1744654544745,0.011785,84850.0,84847.0,0.011785]
[1744654544951,0.247494,84851.0,84847.0,0.247503]
[1744654545401,0.011785,84850.0,84847.0,0.247503]
[1744654545603,0.011785,84850.0,84848.0,0.235715]
[1744654546005,0.011785,84852.0,84849.0,0.235712]
[1744654546206,0.247493,84851.0,84847.0,0.247501]
[1744654546550,0.011785,84851.0,84847.0,0.011785]
[1744654546754,0.011785,84850.0,84848.0,0.235715]
[1744654547180,0.011785,84851.0,84848.0,0.235715]
[1744654547588,0.247492,84851.0,84848.0,0.235715]
[1744654548004,0.011785,84851.0,84848.0,0.2475]
[1744654548198,0.28415877,84856.0,84839.0,0.011787]
[1744654548199,0.001,84850.0,84839.0,0.011787]
[1744654548407,0.0452,84847.0,84820.0,0.0004224]
[1744654548602,0.011787,84836.0,84831.0,0.011788]
[1744654548800,0.011787,84839.0,84834.0,0.011787]
[1744654549095,0.235747,84837.0,84834.0,0.24754]
[1744654549329,0.247536,84836.0,84833.0,0.011787]
[1744654549583,0.247536,84836.0,84830.0,0.0004223]
[1744654549584,0.235762,84831.0,84830.0,0.0004223]
[1744654550079,0.35204859,84831.0,84830.0,0.0004223]
[1744654550833,0.36303542,84831.0,84830.0,0.0004223]
[1744654551327,0.36603542,84831.0,84830.0,0.0004223]
[1744654552312,0.36703542,84831.0,84830.0,0.0004223]
[1744654553105,0.34504883,84831.0,84830.0,0.0004223]
[1744654553505,0.29594883,84831.0,84830.0,0.0004223]
[1744654553887,0.06018683,84831.0,84830.0,0.0004223]
[1744654554093,0.284962,84831.0,84830.0,0.0004223]
[1744654557121,0.85342912,84831.0,84830.0,0.0004223]
[1744654557296,0.93780671,84831.0,84830.0,0.0004223]
[1744654557501,1.24108113,84831.0,84830.0,0.0004223]
[1744654557874,1.25204965,84831.0,84830.0,0.0004223]
[1744654558077,1.24804965,84831.0,84830.0,0.0004223]
[1744654558279,1.25404965,84831.0,84830.0,3e-07]
[1744654558479,1.26504965,84831.0,84830.0,3e-07]
[1744654558681,0.23579,84821.0,84813.0,0.0004223]
[1744654558887,0.35663154,84821.0,84813.0,0.0004223]
[1744654559084,0.70760006,84821.0,84813.0,0.0004223]
[1744654559328,0.7295368,84821.0,84813.0,0.0004223]
[1744654559906,0.72960153,84821.0,84813.0,0.0004223]
[1744654560534,0.72960153,84821.0,84820.0,0.0014224]
[1744654560535,0.61675999,84821.0,84820.0,0.0014224]
[1744654560691,0.27675999,84821.0,84820.0,0.0014224]
[1744654561030,0.01903325,84821.0,84820.0,0.2372154]
[1744654561235,0.00806473,84821.0,84820.0,0.2372154]
[1744654561439,0.01306473,84821.0,84820.0,0.2372154]
[1744654561582,0.24885473,84821.0,84820.0,0.0014224]
[1744654561798,0.23585473,84821.0,84820.0,0.0004224]
[1744654562042,6.473e-05,84821.0,84820.0,0.2362154]
[1744654562246,0.00306473,84821.0,84820.0,0.2362154]
[1744654563271,0.00906473,84821.0,84820.0,0.2372154]
[1744654563426,0.00906473,84821.0,84820.0,0.2362154]
[1744654563427,6.473e-05,84821.0,84820.0,0.2362154]
[1744654563634,0.00306473,84821.0,84820.0,0.2362154]
[1744654563829,0.00506473,84821.0,84820.0,0.2362154]
[1744654566821,0.24085473,84821.0,84820.0,0.0004224]
[1744654567038,0.33585473,84821.0,84820.0,0.0004224]
[1744654568007,0.34183171,84821.0,84820.0,0.0004224]
[1744654568256,0.34483171,84821.0,84820.0,0.0004224]
[1744654568463,0.9413808,84821.0,84820.0,0.0004224]
[1744654569607,0.84126507,84821.0,84820.0,0.0004224]
[1744654570010,0.85580592,84821.0,84820.0,0.0004224]
[1744654570725,1.00200592,84821.0,84820.0,0.0004224]
[1744654571316,0.99446507,84821.0,84820.0,0.0014224]
[1744654571517,0.98582743,84821.0,84820.0,0.0014224]
[1744654571943,0.83662743,84821.0,84820.0,0.0014224]
[1744654572562,0.82462743,84821.0,84820.0,0.0004224]
[1744654572812,0.82862743,84821.0,84820.0,0.0004224]
[1744654572982,0.85913644,84821.0,84820.0,0.0014224]
[1744654573227,0.84459559,84821.0,84820.0,0.0014224]
[1744654573422,0.04399589,84821.0,84820.0,0.0014224]
[1744654573750,0.04399589,84821.0,84820.0,0.12226394]
[1744654573948,0.04399589,84821.0,84820.0,0.12462168]
[1744654574160,0.04399589,84821.0,84820.0,0.46126394]
[1744654574161,0.01104171,84821.0,84820.0,0.46126394]
[1744654574387,0.01504171,84821.0,84820.0,0.46226394]
[1744654574597,0.00906473,84821.0,84820.0,0.46226394]
[1744654574793,0.00906473,84821.0,84820.0,0.51176394]
[1744654576039,0.00506473,84821.0,84820.0,0.46226394]
[1744654576292,6.473e-05,84821.0,84820.0,0.46126394]
[1744654576435,6.473e-05,84821.0,84820.0,0.46626394]
[1744654576797,6.473e-05,84821.0,84820.0,0.46326394]
[1744654577223,0.00106473,84821.0,84820.0,0.46826394]
[1744654580742,0.00106473,84821.0,84820.0,0.70405694]
[1744654581263,0.00106473,84821.0,84820.0,0.36405694]
[1744654581467,0.00106473,84821.0,84820.0,0.0074224]
[1744654581645,0.00106473,84821.0,84820.0,0.2432154]
[1744654582230,0.00106473,84821.0,84820.0,0.2412154]
[1744654582436,6.473e-05,84821.0,84820.0,0.2362154]
[1744654582623,6.473e-05,84821.0,84820.0,0.2392154]
[1744654583282,6.473e-05,84821.0,84820.0,0.2412154]
[1744654590333,6.473e-05,84821.0,84820.0,0.0054224]
[1744654590561,6.473e-05,84821.0,84820.0,0.2412154]
[1744654591896,6.473e-05,84821.0,84820.0,0.36205694]
[1744654592335,7.3e-07,84821.0,84820.0,0.74715694]
[1744654592755,7.3e-07,84821.0,84820.0,0.76169779]
[1744654593833,7.3e-07,84821.0,84820.0,0.77049942]
[1744654594245,7.3e-07,84821.0,84820.0,0.75395857]
[1744654594673,0.00100073,84821.0,84820.0,0.75895857]
[1744654595428,0.00100073,84821.0,84820.0,0.36505694]
[1744654604357,0.00100073,84821.0,84820.0,0.7139727]
[1744654604592,0.01101497,84836.0,84835.0,0.235751]
[1744654604864,6e-07,84850.0,84849.0,0.22303196]
[1744654605093,4e-07,84855.0,84854.0,0.575698]
[1744654605322,4e-07,84855.0,84854.0,0.89491954]
[1744654605549,4e-07,84855.0,84854.0,0.90946039]
[1744654605781,4e-07,84855.0,84854.0,0.89677039]
[1744654606017,4e-05,84877.0,84863.0,0.575673]
[1744654606275,0.00093667,84864.0,84863.0,0.69651454]
[1744654606964,0.00093667,84864.0,84863.0,1.14434932]
[1744654607457,4e-05,84877.0,84876.0,0.235637]
[1744654607699,0.0004982,84877.0,84876.0,0.72903276]
[1744654607927,0.0004982,84877.0,84876.0,0.775477]
[1744654608153,0.0004982,84877.0,84876.0,0.89631854]
[1744654608381,0.0004982,84877.0,84876.0,0.91085939]
[1744654610202,0.0004982,84877.0,84876.0,0.91185939]
[1744654610428,0.0004982,84877.0,84876.0,0.91085939]
[1744654610648,0.0004982,84877.0,84876.0,0.91485939]
[1744654610887,0.0004982,84877.0,84876.0,0.90216939]
[1744654611125,0.0004982,84877.0,84876.0,0.83982854]
[1744654611558,0.0004982,84877.0,84876.0,0.83882854]
[1744654611754,0.0004982,84877.0,84876.0,0.84182854]
[1744654612927,0.0004982,84877.0,84876.0,0.84178854]
[1744654613157,0.0004982,84877.0,84876.0,0.85632939]
[1744654613372,4e-07,84879.0,84878.0,0.59017285]
[1744654613594,4e-07,84879.0,84878.0,0.71101439]
[1744654614478,4e-07,84879.0,84878.0,0.71301439]
[1744654614702,4e-07,84879.0,84878.0,0.70147354]
[1744654615782,4e-07,84879.0,84878.0,0.68878354]
[1744654616427,4e-07,84879.0,84878.0,0.49638354]
[1744654617770,4e-07,84879.0,84878.0,0.49438354]
[1744654618016,4e-07,84879.0,84878.0,0.49238354]
[1744654618216,4e-07,84879.0,84878.0,0.49338354]
[1744654621005,4e-07,84879.0,84878.0,0.48069354]
[1744654621438,4e-07,84879.0,84878.0,0.50607354]
[1744654625170,4e-07,84879.0,84878.0,0.90811439]
[1744654625998,4e-07,84879.0,84878.0,0.89342439]
[1744654626352,4e-07,84879.0,84878.0,0.89942439]
[1744654626552,4e-07,84879.0,84878.0,0.89542439]
[1744654626753,4e-07,84879.0,84878.0,0.89942439]
[1744654627182,4e-07,84879.0,84878.0,0.90342439]
[1744654627807,4e-07,84879.0,84878.0,0.85592439]
[1744654628010,4e-07,84879.0,84878.0,0.84138354]
[1744654628925,4e-07,84879.0,84878.0,0.49138354]
[1744654629106,4e-07,84879.0,84878.0,0.49338354]
[1744654629315,4e-07,84879.0,84878.0,0.49538354]
[1744654630187,4e-07,84879.0,84878.0,0.49138354]
[1744654630609,4e-07,84879.0,84878.0,0.49238354]
[1744654631042,4e-07,84879.0,84878.0,0.48362237]
[1744654632054,4e-07,84879.0,84878.0,0.33602237]
[1744654632254,4e-07,84879.0,84878.0,0.48362237]
[1744654637456,4e-07,84879.0,84878.0,0.82362237]
[1744654637865,4e-07,84879.0,84878.0,0.83816322]
[1744654638243,4e-07,84879.0,84878.0,0.88796322]
[1744654639260,4e-07,84879.0,84878.0,0.88696322]
[1744654639463,4e-07,84879.0,84878.0,0.89496322]
[1744654641365,4e-07,84879.0,84878.0,1.30806322]
[1744654641588,4e-07,84896.0,84895.0,0.575585]
[1744654641794,4e-07,84896.0,84895.0,0.85856739]
[1744654642001,5.8e-07,84900.0,84899.0,0.01454085]
[1744654642215,5.8e-07,84900.0,84899.0,0.71331154]
[1744654642425,0.0008448,84907.0,84906.0,0.59009485]
[1744654642426,3.8e-07,84907.0,84906.0,0.59009485]
[1744654642693,3.8e-07,84907.0,84906.0,1.12303639]
[1744654643993,3.8e-07,84907.0,84906.0,1.10849554]
[1744654644799,3.8e-07,84907.0,84906.0,1.11149554]
[1744654645005,3.8e-07,84907.0,84906.0,1.11049554]
[1744654645423,3.8e-07,84907.0,84906.0,1.10849554]
[1744654645716,3.8e-07,84907.0,84906.0,1.10949554]
[1744654646123,3.8e-07,84907.0,84906.0,0.78128521]
[1744654646767,3.8e-07,84907.0,84906.0,0.92680521]
[1744654647399,3.8e-07,84907.0,84906.0,0.51470521]
[1744654650596,3.8e-07,84907.0,84906.0,0.86924606]
[1744654650798,1.8e-07,84913.0,84912.0,0.575537]
[1744654651430,1.8e-07,84913.0,84912.0,0.69637854]
[1744654652478,0.00100018,84913.0,84912.0,0.69637854]
[1744654652686,1.8e-07,84913.0,84912.0,0.35637854]
[1744654653141,1.8e-07,84913.0,84912.0,0.35737854]
[1744654653365,0.00100018,84913.0,84912.0,0.35737854]
[1744654654264,0.00100018,84913.0,84912.0,0.35637854]
[1744654656612,0.04910018,84913.0,84912.0,0.35637854]
[1744654656847,0.00100018,84913.0,84912.0,0.35637854]
[1744654663489,0.00575068,84913.0,84911.0,0.38106]
[1744654663687,0.00100018,84913.0,84912.0,0.235537]
[1744654663856,0.00575068,84913.0,84912.0,0.235537]
[1744654664262,0.282037,84912.0,84911.0,0.14552]
[1744654664498,0.282037,84912.0,84886.0,0.01178]
[1744654664499,0.011779,84892.0,84886.0,0.01178]
[1744654664669,0.292383,84889.0,84886.0,0.12084154]
[1744654664875,0.00696504,84888.0,84887.0,0.235606]
[1744654665108,0.045,84889.0,84888.0,0.235604]
[1744654665316,0.011777,84905.0,84901.0,0.011778]
[1744654665515,0.235568,84901.0,84898.0,0.247354]
[1744654665721,0.235574,84899.0,84895.0,0.247362]
[1744654665923,0.235585,84895.0,84886.0,0.01178]
[1744654666126,0.235607,84887.0,84885.0,0.00013738]
[1744654666293,0.01178,84888.0,84885.0,0.24752938]
[1744654666495,0.23561,84886.0,84885.0,0.00013738]
[1744654666695,0.28411,84886.0,84885.0,0.00013738]
[1744654666880,0.33860342,84886.0,84885.0,0.00013738]
[1744654668774,0.34060342,84886.0,84885.0,0.00013738]